{"text_format":"1","workbook":"xlsx","n_sheets":5,"sheets":["Ohje","4AREA","2AREAV","2AREAH","1AREA"],"not_rendered":{"charts":0,"images":2,"macros":1,"external_links":0,"defined_names":43,"comments":0,"pivot_tables":0},"unopened":[],"bounds":{"document_bytes":16777216,"sheet_cells":100000,"rows_first":2000,"rows_last":500,"rows_between":2000,"halvings":0,"cell_chars":16384,"cell_head_chars":4096},"cells_cut":0,"cells_raw":0,"read":"whole","date_system":"1900"}

{"sheet":"Ohje","index":0,"n_rows":36,"n_cols":5,"rows_kept":36,"cut":false,"hidden":false,"merged":[]}
["LIDAR KOORDINAATTIEN LASKENTATAULUKON  KÄYTTÖOHJE"]
["- Syötä taulukkoon MML-karttalehtien numerot, jotka vastaavat noudettuja aineistoja."]
["- Ruudun koko on aina 3000 x 3000 metriä."]
["- Syötä taulukkoon vasemman alaruudun vasemman alakulman koordinaatit."]
["- Syötä vielä karttaprojektille nimi ja käytettävän MML Shape tiedoston nimi."]
["- Tulosta paperille allaolevan tyyppinen kuva ja piirrä siihen kartoitettava alue"]
["- Mittaa ruudun koko milleinä"]
["- Samoin mittaa kartoitettavan alueen mitat ruudukon suhteen (kts. Kuva)"]
["- Samoin mittaa kartoitettavan alueen mitat ruudukon suhteen (kts. Kuva)"]
["- Syötä nämä 5 mittaa taulukkoon niille kuuluviin ruutuihin."]
["  (voit toki käyttää myös todellisia metrejä; silloin ruudin koko on 3000)"]
[]
["Tämän jälkeen taulukko laskee valmiiksi kaikki aineiston yhdistelyyn tarvittavat"]
["koordinaatit (esimerkiksi Martin Isembergin las2las.exe ohjelmalle)"]
["Taulukon oikeassa reunassa on myös valmis .BAT ohjelman koodi, jolla eri"]
["käsittelyvaiheet voidaan tehdä automaattisesti peräkkäin."]
["(voit kopioida koodin tekstieditorin kautta BAT tiedostoon)"]
["Huomaa, että hakemistossa on oltava las2las.exe, las2txt.exe  ja pullauta.exe ohjelmat."]
[]
[]
[]
[]
[]
[]
[]
[]
[]
[]
[]
[]
[]
[]
[null,null,"KOMENTONÄPPÄIMET"]
[null,null,"Pullauta kartta","=","Suorittaa LiDAR aineiston optimoinnin ja \"Pullauttaa\" lopuksi alueen kartan, joka näytetään IrfanView ohjelmassa."]
[]
[null,null,"Tee DXF tiedostot","=","Generoi LiDAR aineistosta DXF tiedostot. Niitä voi hyödyntää esim. Vanhemmissaa OCAD versioissa."]

{"sheet":"4AREA","index":1,"n_rows":39,"n_cols":20,"rows_kept":39,"cut":false,"hidden":false,"merged":[[0,8,0,10],[1,8,1,10]]}
[null,null,null,null,null,"Projektin nimi:",null,null,"Kivikko",null,null,null,null,null,null,null,null,null,null,"LAZ tiedotojen yhdistely NELJÄLTÄ MML-karttalehdeltä"]
[null,null,null,null,null,"Shape tiedoston nimi:",null,null,"L4134R.shp.zip L4134l.shp.zip"]
[null,null,null,null,null,null,null,null,null,null,null,null,null,null,null,null,null,null,null,"Kopioi nämä rivit esimerkiksi \"PULLAUTIN.BAT\" tiedostoksi, jolla voit ajaa pullautuksen"]
[null,null,null,null,null,null,null,null,null,null,{"$f":"D36+3000","v":392000},"(X)",null,null,null,null,null,{"$f":"D36+6000","v":395000},"(X)",{"$f":"\"rem pisteet vasemmasta alaosasta \"&G34&\".laz\"","v":"rem pisteet vasemmasta alaosasta L4134C3.laz"}]
[null,null,null,null,null,null,"L4134C4",null,null,null,{"$f":"D37+6000","v":6684000},"(Y)",null,null,null,"L4134E2",null,{"$f":"D37+6000","v":6684000},"(Y)",{"$f":"\"las2las -i \"&G34&\".laz -o \"&G34&\"_P.laz  -keep_xy \"&TEXT(G27,\"#\")&\" \"&TEXT(G28,\"#\")&\" \"&TEXT(K20,\"#\")&\" \"&TEXT(K21,\"#\")","v":"las2las -i L4134C3.laz -o L4134C3_P.laz  -keep_xy 391100 6679300 392000 6681000"}]
[null,null,null,null,null,null,null,null,null,null,null,null,null,null,null,null,null,null,null,{"$f":"\"rem pisteet vasemmasta ylaosasta \"&G5&\".laz\"","v":"rem pisteet vasemmasta ylaosasta L4134C4.laz"}]
[null,null,null,null,null,null,null,null,null,null,null,null,null,null,null,null,null,null,null,{"$f":"\"las2las -i \"&G5&\".laz -o \"&G5&\"_P.laz  -keep_xy \"&TEXT(G20,\"#\")&\" \"&TEXT(G21,\"#\")&\" \"&TEXT(K12,\"#\")&\" \"&TEXT(K13,\"#\")","v":"las2las -i L4134C4.laz -o L4134C4_P.laz  -keep_xy 391100 6681000 392000 6681400"}]
[null,null,null,null,null,null,null,null,null,null,null,null,null,null,null,null,null,null,null,{"$f":"\"rem pisteet oikeasta alaosasta \"&P34&\".laz\"","v":"rem pisteet oikeasta alaosasta L4134E1.laz"}]
[null,null,null,null,null,null,null,null,null,null,null,null,null,null,null,null,null,null,null,{"$f":"\"las2las -i \"&P34&\".laz -o \"&P34&\"_P.laz  -keep_xy \"&TEXT(K27,\"#\")&\" \"&TEXT(K28,\"#\")&\" \"&TEXT(O20,\"#\")&\" \"&TEXT(O21,\"#\")","v":"las2las -i L4134E1.laz -o L4134E1_P.laz  -keep_xy 392000 6679300 394300 6681000"}]
[null,null,null,null,null,null,null,null,null,null,null,null,null,null,null,null,null,null,null,{"$f":"\"rem pisteet oikeasta ylaosasta \"&P5&\".laz\"","v":"rem pisteet oikeasta ylaosasta L4134E2.laz"}]
[null,{"$f":"H38","v":150},null,null,null,null,null,null,null,null,null,null,null,null,null,null,null,null,null,{"$f":"\"las2las -i \"&P5&\".laz -o \"&P5&\"_P.laz  -keep_xy \"&TEXT(K20,\"#\")&\" \"&TEXT(K21,\"#\")&\" \"&TEXT(O12,\"#\")&\" \"&TEXT(O13,\"#\")","v":"las2las -i L4134E2.laz -o L4134E2_P.laz  -keep_xy 392000 6681000 394300 6681400"}]
[null,null,null,null,null,null,null,null,null,null,{"$f":"K36","v":392000},null,null,null,{"$f":"INT((K36+(N24/$H$38)*3000)/10)*10","v":394300},null,null,null,null,"rem pisteiden yhdistely"]
[null,null,null,null,null,null,null,null,null,null,{"$f":"INT((D21+((I14)/$H$38)*3000)/10)*10","v":6681400},null,null,null,{"$f":"INT((D21+((I14)/$H$38)*3000)/10)*10","v":6681400},null,null,null,null,{"$f":"\"las2las -i *_P.laz -o \"&I1&\".laz -merged\"","v":"las2las -i *_P.laz -o Kivikko.laz -merged"}]
[null,null,null,null,null,null,null,null,20,null,null,null,null,null,null,null,null,null,null,"rem pisteiden pullautus yhdistetysta tiedostosta .png tiedostoksi"]
[null,null,null,null,null,null,null,null,null,null,null,null,null,null,null,null,null,null,null,{"$f":"\"pullauta \"&I1&\".laz\"","v":"pullauta Kivikko.laz"}]
[null,null,null,null,null,null,null,null,null,null,null,null,null,null,null,null,null,null,null,"rem shapefilen pullautus samaan .png tiedostoon"]
[null,null,null,null,null,null,null,null,null,null,null,null,null,null,null,null,null,null,null,{"$f":"\"pullauta \"&I2","v":"pullauta L4134R.shp.zip L4134l.shp.zip"}]
[]
[null,null,null,null,null,null,null,null,null,null,null,null,null,null,null,null,null,null,null,"Kopioi nämä rivit esimerkiksi \"TEEDXF.bat\" tiedostoksi, jolla voit ajaa DXF tiedostot"]
[null,null,null,{"$f":"D36","v":389000},"(X)",null,{"$f":"G27","v":391100},null,null,null,{"$f":"D36+3000","v":392000},"(X)",null,null,{"$f":"INT((K36+(N24/$H$38)*3000)/10)*10","v":394300},null,null,{"$f":"D36+6000","v":395000},"(X)","rem Tehdään vielä kayrasto 0.25 metrin, 1 metrin ja 2 metrin intervalleilla"]
[null,null,null,{"$f":"D37+3000","v":6681000},"(Y)",null,{"$f":"D21","v":6681000},null,null,null,{"$f":"D37+3000","v":6681000},"(Y)",null,null,{"$f":"D21","v":6681000},null,null,{"$f":"D37+3000","v":6681000},"(Y)","pullauta xyz2contours 0.25 xyz2.xyz null out.dxf"]
[null,null,null,null,null,null,null,null,85,null,null,null,null,null,null,null,null,null,null,"pullauta smoothjoin"]
[null,null,null,null,null,null,null,null,null,null,null,null,null,null,null,null,null,null,null,"copy temp\\out.dxf contours025.dxf /Y"]
[null,null,null,null,null,null,null,null,null,45,null,null,null,115,null,null,null,null,null,"copy temp\\out2.dxf contoursmooth025.dxf /Y"]
[null,null,null,null,null,null,null,null,null,null,null,null,null,null,null,null,null,null,null,"pullauta xyz2contours 1.0 xyz2.xyz null out.dxf"]
[null,null,null,null,null,null,null,null,null,null,null,null,null,null,null,null,null,null,null,"pullauta smoothjoin"]
[null,{"$f":"H38","v":150},null,null,null,null,{"$f":"INT((D36+(($H$38-J24)/$H$38)*3000)/10)*10","v":391100},null,null,null,{"$f":"K36","v":392000},null,null,null,null,null,null,null,null,"copy temp\\out.dxf contours10.dxf /Y"]
[null,null,null,null,null,null,{"$f":"INT((D37+(($H$38-I22)/$H$38)*3000)/10)*10","v":6679300},null,null,null,{"$f":"G28","v":6679300},null,null,null,null,null,null,null,null,"copy temp\\out2.dxf contoursmooth10.dxf /Y"]
[null,null,null,null,null,null,null,null,null,null,null,null,null,null,null,null,null,null,null,"pullauta xyz2contours 2.0 xyz2.xyz null out.dxf"]
[null,null,null,null,null,null,null,null,null,null,null,null,null,null,null,null,null,null,null,"pullauta smoothjoin"]
[null,null,null,null,null,null,null,null,null,null,null,null,null,null,null,null,null,null,null,"copy temp\\out.dxf contours20.dxf /Y"]
[null,null,null,null,null,null,null,null,null,null,null,null,null,null,null,null,null,null,null,"copy temp\\out2.dxf contoursmooth20.dxf /Y"]
[]
[null,null,null,null,null,null,"L4134C3",null,null,null,null,null,null,null,null,"L4134E1"]
[]
[null,null,null,389000,"(X)",null,null,null,null,null,{"$f":"D36+3000","v":392000},"(X)"]
[null,null,null,6678000,"(Y)",null,null,null,null,null,{"$f":"D37","v":6678000},"(Y)"]
[null,null,null,null,null,null,null,150,null,null,null,null,null,null,{"$f":"H38","v":150},null,null,null,null,"SYÖTÄ TIETOJA VAIN KELTAISIIN KENTTIIN !!!!"]
[null,null,null,null,null,null,null,"(Ruudun koko paperilla)"]

{"sheet":"2AREAV","index":2,"n_rows":39,"n_cols":15,"rows_kept":39,"cut":false,"hidden":false,"merged":[[0,9,0,12],[1,9,1,12]]}
[null,null,null,null,null,null,"Projektin nimi:",null,null,"Luukki",null,null,null,null,"LAZ tiedotojen yhdistely KAHDELTA PÄÄLLEKKÄISELTÄ MML-karttalehdeltä"]
[null,null,null,null,null,null,"Shape tiedoston nimi:",null,null,"L4132R.shp.zip"]
[null,null,null,null,null,null,null,null,null,null,null,null,null,null,"Kopioi nämä rivit esimerkiksi \"PULLAUTIN.BAT\" tiedostoksi, jolla voit ajaa pullautuksen"]
[null,null,null,null,null,null,null,null,null,null,null,null,{"$f":"D36+3000","v":374000},"(X)",{"$f":"\"rem pisteet vasemmasta alaosasta \"&G34&\".laz\"","v":"rem pisteet vasemmasta alaosasta L4132F4.laz"}]
[null,null,null,null,null,null,"L4141E3",null,null,null,null,null,{"$f":"D37+6000","v":6693000},"(Y)",{"$f":"\"las2las -i \"&G34&\".laz -o \"&G34&\"_P.laz  -keep_xy \"&TEXT(G27,\"#\")&\" \"&TEXT(G28,\"#\")&\" \"&TEXT(K20,\"#\")&\" \"&TEXT(K21,\"#\")","v":"las2las -i L4132F4.laz -o L4132F4_P.laz  -keep_xy 372500 6688500 373250 6690000"}]
[null,null,null,null,null,null,null,null,null,null,null,null,null,null,{"$f":"\"rem pisteet vasemmasta ylaosasta \"&G5&\".laz\"","v":"rem pisteet vasemmasta ylaosasta L4141E3.laz"}]
[null,null,null,null,null,null,null,null,null,null,null,null,null,null,{"$f":"\"las2las -i \"&G5&\".laz -o \"&G5&\"_P.laz  -keep_xy \"&TEXT(G20,\"#\")&\" \"&TEXT(G21,\"#\")&\" \"&TEXT(K12,\"#\")&\" \"&TEXT(K13,\"#\")","v":"las2las -i L4141E3.laz -o L4141E3_P.laz  -keep_xy 372500 6690000 373250 6691500"}]
[null,null,null,null,null,null,null,null,null,null,null,null,null,null,"rem pisteiden yhdistely"]
[null,null,null,null,null,null,null,null,null,null,null,null,null,null,{"$f":"\"las2las -i *_P.laz -o \"&J1&\".laz -merged\"","v":"las2las -i *_P.laz -o Luukki.laz -merged"}]
[null,null,null,null,null,null,null,null,null,null,null,null,null,null,"rem pisteiden pullautus yhdistetysta tiedostosta .png tiedostoksi"]
[null,{"$f":"I38","v":200},null,null,null,null,null,null,null,null,null,null,null,null,{"$f":"\"pullauta \"&J1&\".laz\"","v":"pullauta Luukki.laz"}]
[null,null,null,null,null,null,null,null,null,null,{"$f":"K20","v":373250},null,null,null,"rem shapefilen pullautus samaan .png tiedostoon"]
[null,null,null,null,null,null,null,null,null,null,{"$f":"INT((D21+((I14)/$I$38)*3000)/10)*10","v":6691500},null,null,null,{"$f":"\"pullauta \"&J2","v":"pullauta L4132R.shp.zip"}]
[null,null,null,null,null,null,null,null,100]
[null,null,null,null,null,null,null,null,null,null,null,null,null,null,"Kopioi nämä rivit esimerkiksi \"TEEDXF.bat\" tiedostoksi, jolla voit ajaa DXF tiedostot"]
[null,null,null,null,null,null,null,null,null,null,null,null,null,null,"rem Tehdään vielä kayrasto 0.25 metrin, 1 metrin ja 2 metrin intervalleilla"]
[null,null,null,null,null,null,null,null,null,null,null,null,null,null,"pullauta xyz2contours 0.25 xyz2.xyz null out.dxf"]
[null,null,null,null,null,null,null,null,null,null,null,null,null,null,"pullauta smoothjoin"]
[null,null,null,null,null,null,null,null,null,null,null,null,null,null,"copy temp\\out.dxf contours025.dxf /Y"]
[null,null,null,{"$f":"D36","v":371000},"(X)",null,{"$f":"G27","v":372500},null,null,null,{"$f":"INT((D36+((F24+J24)/$I$38)*3000)/10)*10","v":373250},null,{"$f":"D36+3000","v":374000},"(X)","copy temp\\out2.dxf contoursmooth025.dxf /Y"]
[null,null,null,{"$f":"D37+3000","v":6690000},"(Y)",null,{"$f":"D21","v":6690000},null,null,null,{"$f":"D21","v":6690000},null,{"$f":"D37+3000","v":6690000},"(Y)","pullauta xyz2contours 1.0 xyz2.xyz null out.dxf"]
[null,null,null,null,null,null,null,null,100,null,null,null,null,null,"pullauta smoothjoin"]
[null,null,null,null,null,null,null,null,null,null,null,null,null,null,"copy temp\\out.dxf contours10.dxf /Y"]
[null,null,null,null,null,100,null,null,null,50,null,null,null,null,"copy temp\\out2.dxf contoursmooth10.dxf /Y"]
[null,null,null,null,null,null,null,null,null,null,null,null,null,null,"pullauta xyz2contours 2.0 xyz2.xyz null out.dxf"]
[null,null,null,null,null,null,null,null,null,null,null,null,null,null,"pullauta smoothjoin"]
[null,{"$f":"I38","v":200},null,null,null,null,{"$f":"INT((D36+((F24)/$I$38)*3000)/10)*10","v":372500},null,null,null,null,null,null,null,"copy temp\\out.dxf contours20.dxf /Y"]
[null,null,null,null,null,null,{"$f":"INT((D37+(($I$38-I22)/$I$38)*3000)/10)*10","v":6688500},null,null,null,null,null,null,null,"copy temp\\out2.dxf contoursmooth20.dxf /Y"]
[]
[]
[]
[]
[]
[null,null,null,null,null,null,"L4132F4"]
[null,null,null,null,null,null,null,null,null,null,null,null,null,null,"SYÖTÄ TIETOJA VAIN KELTAISIIN KENTTIIN !!!!"]
[null,null,null,371000,"(X)",null,null,null,null,null,null,null,{"$f":"D36+3000","v":374000}]
[null,null,null,6687000,"(Y)",null,null,null,null,null,null,null,{"$f":"D37","v":6687000}]
[null,null,null,null,null,null,null,null,200]
[null,null,null,null,null,null,null,null,"(Ruudun koko paperilla)"]

{"sheet":"2AREAH","index":3,"n_rows":33,"n_cols":20,"rows_kept":33,"cut":false,"hidden":false,"merged":[[0,8,0,10],[1,8,1,10]]}
[null,null,null,null,null,"Projektin nimi:",null,null,"soderkulla",null,null,null,null,null,null,null,null,null,null,"LAZ tiedotojen yhdistely KAHDELTA VIEREKKÄISELTÄ MML-karttalehdeltä"]
[null,null,null,null,null,"Shape tiedoston nimi:",null,null,"L4312L.shp.zip"]
[]
[]
[null,null,null,{"$f":"D21","v":404000},"(X)",null,null,null,null,null,null,null,null,null,null,null,null,{"$f":"D21+6000","v":410000},"(X)","Kopioi nämä rivit esimerkiksi \"PULLAUTIN.BAT\" tiedostoksi, jolla voit ajaa pullautuksen"]
[null,null,null,{"$f":"D22+3000","v":6687000},"(Y)",null,null,null,null,null,null,null,null,null,null,null,null,{"$f":"D22+3000","v":6687000},"(Y)",{"$f":"\"rem pisteet vasemmasta alaosasta \"&G19&\".laz\"","v":"rem pisteet vasemmasta alaosasta L4312B1.laz"}]
[null,null,null,null,null,null,null,null,null,null,null,null,null,null,null,null,null,null,null,{"$f":"\"las2las -i \"&G19&\".laz -o \"&G19&\"_P.laz  -keep_xy \"&TEXT(G15,\"#\")&\" \"&TEXT(G16,\"#\")&\" \"&TEXT(K8,\"#\")&\" \"&TEXT(K9,\"#\")","v":"las2las -i L4312B1.laz -o L4312B1_P.laz  -keep_xy 405500 6685500 407000 6687000"}]
[null,null,null,null,null,null,null,null,null,null,{"$f":"D21+3000","v":407000},"(X)",null,null,{"$f":"INT((K21+((N12)/$H$23)*3000)/10)*10","v":408500},null,null,null,null,{"$f":"\"rem pisteet oikeasta alaosasta \"&P19&\".laz\"","v":"rem pisteet oikeasta alaosasta L4312B3.laz"}]
[null,null,null,null,null,null,null,null,null,null,{"$f":"INT((D22+((I18+I10)/$H$23)*3000)/10)*10","v":6687000},"(Y)",null,null,{"$f":"K9","v":6687000},null,null,null,null,{"$f":"\"las2las -i \"&P19&\".laz -o \"&P19&\"_P.laz  -keep_xy \"&TEXT(K15,\"#\")&\" \"&TEXT(K16,\"#\")&\" \"&TEXT(O8,\"#\")&\" \"&TEXT(O9,\"#\")","v":"las2las -i L4312B3.laz -o L4312B3_P.laz  -keep_xy 407000 6685500 408500 6687000"}]
[null,null,null,null,null,null,null,null,100,null,null,null,null,null,null,null,null,null,null,"rem pisteiden yhdistely"]
[null,null,null,null,null,null,null,null,null,null,null,null,null,null,null,null,null,null,null,{"$f":"\"las2las -i *_P.laz -o \"&I1&\".laz -merged\"","v":"las2las -i *_P.laz -o soderkulla.laz -merged"}]
[null,null,null,null,null,null,null,null,null,100,null,null,null,100,null,null,null,null,null,"rem pisteiden pullautus yhdistetysta tiedostosta .png tiedostoksi"]
[null,{"$f":"H23","v":200},null,null,null,null,null,null,null,null,null,null,null,null,null,null,null,null,null,{"$f":"\"pullauta \"&I1&\".laz\"","v":"pullauta soderkulla.laz"}]
[null,null,null,null,null,null,null,null,null,null,null,null,null,null,null,null,null,null,null,"rem shapefilen pullautus samaan .png tiedostoon"]
[null,null,null,null,null,null,{"$f":"INT((D21+(($H$23-J12)/$H$23)*3000)/10)*10","v":405500},null,null,null,{"$f":"D21+3000","v":407000},null,null,null,null,null,null,null,null,{"$f":"\"pullauta \"&I2","v":"pullauta L4312L.shp.zip"}]
[null,null,null,null,null,null,{"$f":"INT((D22+((I18)/$H$23)*3000)/10)*10","v":6685500},null,null,null,{"$f":"G16","v":6685500}]
[null,null,null,null,null,null,null,null,null,null,null,null,null,null,null,null,null,null,null,"Kopioi nämä rivit esimerkiksi \"TEEDXF.bat\" tiedostoksi, jolla voit ajaa DXF tiedostot"]
[null,null,null,null,null,null,null,null,100,null,null,null,null,null,null,null,null,null,null,"rem Tehdään vielä kayrasto 0.25 metrin, 1 metrin ja 2 metrin intervalleilla"]
[null,null,null,null,null,null,"L4312B1",null,null,null,null,null,null,null,null,"L4312B3",null,null,null,"pullauta xyz2contours 0.25 xyz2.xyz null out.dxf"]
[null,null,null,null,null,null,null,null,null,null,null,null,null,null,null,null,null,null,null,"pullauta smoothjoin"]
[null,null,null,404000,"(X)",null,null,null,null,null,{"$f":"D21+3000","v":407000},"(X)",null,null,null,null,null,null,null,"copy temp\\out.dxf contours025.dxf /Y"]
[null,null,null,6684000,"(Y)",null,null,null,null,null,{"$f":"D22","v":6684000},"(Y)",null,null,null,null,null,null,null,"copy temp\\out2.dxf contoursmooth025.dxf /Y"]
[null,null,null,null,null,null,null,200,null,null,null,null,null,null,{"$f":"H23","v":200},null,null,null,null,"pullauta xyz2contours 1.0 xyz2.xyz null out.dxf"]
[null,null,null,null,null,null,null,"(Ruudun koko paperilla)",null,null,null,null,null,null,null,null,null,null,null,"pullauta smoothjoin"]
[null,null,null,null,null,null,null,null,null,null,null,null,null,null,null,null,null,null,null,"copy temp\\out.dxf contours10.dxf /Y"]
[null,null,null,null,null,null,null,null,null,null,null,null,null,null,null,null,null,null,null,"copy temp\\out2.dxf contoursmooth10.dxf /Y"]
[null,null,null,null,null,null,null,null,null,null,null,null,null,null,null,null,null,null,null,"pullauta xyz2contours 2.0 xyz2.xyz null out.dxf"]
[null,null,null,null,null,null,null,null,null,null,null,null,null,null,null,null,null,null,null,"pullauta smoothjoin"]
[null,null,null,null,null,null,null,null,null,null,null,null,null,null,null,null,null,null,null,"copy temp\\out.dxf contours20.dxf /Y"]
[null,null,null,null,null,null,null,null,null,null,null,null,null,null,null,null,null,null,null,"copy temp\\out2.dxf contoursmooth20.dxf /Y"]
[]
[]
[null,null,null,null,null,null,null,null,null,null,null,null,null,null,null,null,null,null,null,"SYÖTÄ TIETOJA VAIN KELTAISIIN KENTTIIN !!!!"]

{"sheet":"1AREA","index":4,"n_rows":30,"n_cols":14,"rows_kept":30,"cut":false,"hidden":false,"merged":[[0,8,0,10],[1,8,1,10]]}
[null,null,null,null,null,"Projektin nimi:",null,null,"SAVITAIPALE",null,null,null,null,"LAZ tiedot YHDELTÄ MML-karttalehdeltä"]
[null,null,null,null,null,"Shape tiedoston nimi:",null,null,"M5114R.shp.zip"]
[]
[]
[null,null,null,null,null,null,null,null,null,null,null,{"$f":"D21+3000","v":539000},"(X)","Kopioi nämä rivit esimerkiksi \"PULLAUTIN.BAT\" tiedostoksi, jolla voit ajaa pullautuksen"]
[null,null,null,null,null,null,null,null,null,null,null,{"$f":"D22+3000","v":6786000},"(Y)",{"$f":"\"rem Mapping Project  : \"&I1","v":"rem Mapping Project  : SAVITAIPALE"}]
[null,null,null,null,null,null,null,null,null,null,null,null,null,{"$f":"\"rem Pisteet osasta \"&G19&\".laz\"","v":"rem Pisteet osasta M5114F2.laz"}]
[null,null,null,null,null,null,null,null,null,null,{"$f":"INT((D21+((F12+J12)/$H$23)*3000)/10)*10","v":538240},null,null,{"$f":" \"las2las -i \"&G19&\".laz -o \"&I1&\".laz -keep_xy \"&TEXT(G15,\"#\")&\" \"&TEXT(G16,\"#\")&\" \"&TEXT(K8,\"#\")&\" \"&TEXT(K9,\"#\")","v":"las2las -i M5114F2.laz -o SAVITAIPALE.laz -keep_xy 537200 6785030 538240 6785710"}]
[null,null,null,null,null,null,null,null,null,null,{"$f":"INT((D22+((I18+I10)/$H$23)*3000)/10)*10","v":6785710},null,null,"rem Pisteiden pullautus yhdistetysta tiedostosta .png tiedostoksi"]
[null,null,null,null,null,null,null,null,29,null,null,null,null,{"$f":"\" pullauta \"&I1&\".laz\"","v":" pullauta SAVITAIPALE.laz"}]
[null,null,null,null,null,null,null,null,null,null,null,null,null,"rem Shapefilen pullautus samaan .png tiedostoon"]
[null,null,null,null,null,51,null,null,null,44,null,null,null,{"$f":"\"rem pullauta \"&I2","v":"rem pullauta M5114R.shp.zip"}]
[null,{"$f":"H23","v":127}]
[null,null,null,null,null,null,null,null,null,null,null,null,null,"Kopioi nämä rivit esimerkiksi \"TEEDXF.bat\" tiedostoksi, jolla voit ajaa DXF tiedostot"]
[null,null,null,null,null,null,{"$f":"INT((D21+((F12)/$H$23)*3000)/10)*10","v":537200},null,null,null,null,null,null,"rem Tehdään vielä kayrasto 0.25 metrin, 1 metrin ja 2 metrin intervalleilla"]
[null,null,null,null,null,null,{"$f":"INT((D22+((I18)/$H$23)*3000)/10)*10","v":6785030},null,null,null,null,null,null,"pullauta xyz2contours 0.25 xyz2.xyz null out.dxf"]
[null,null,null,null,null,null,null,null,null,null,null,null,null,"pullauta smoothjoin"]
[null,null,null,null,null,null,null,null,86,null,null,null,null,"copy temp\\out.dxf contours025.dxf /Y"]
[null,null,null,null,null,null,"M5114F2",null,null,null,null,null,null,"copy temp\\out2.dxf contoursmooth025.dxf /Y"]
[null,null,null,null,null,null,null,null,null,null,null,null,null,"pullauta xyz2contours 1.0 xyz2.xyz null out.dxf"]
[null,null,null,536000,"(X)",null,null,null,null,null,null,null,null,"pullauta smoothjoin"]
[null,null,null,6783000,"(Y)",null,null,null,null,null,null,null,null,"copy temp\\out.dxf contours10.dxf /Y"]
[null,null,null,null,null,null,null,127,null,null,null,null,null,"copy temp\\out2.dxf contoursmooth10.dxf /Y"]
[null,null,null,null,null,null,null,"(Ruudun koko paperilla)",null,null,null,null,null,"pullauta xyz2contours 2.0 xyz2.xyz null out.dxf"]
[null,null,null,null,null,null,null,null,null,null,null,null,null,"pullauta smoothjoin"]
[null,null,null,null,null,null,null,null,null,null,null,null,null,"copy temp\\out.dxf contours20.dxf /Y"]
[null,null,null,null,null,null,null,null,null,null,null,null,null,"copy temp\\out2.dxf contoursmooth20.dxf /Y"]
[]
[]
[null,null,null,null,null,null,null,null,null,null,null,null,null,"SYÖTÄ TIETOJA VAIN KELTAISIIN KENTTIIN !!!!"]